[Event "Early-Titled-Tuesday-Blitz-September-12-2023"]
[Site "Chess.com"]
[Date "2023.09.12"]
[Round "2"]
[White "Arimin1329"]
[Black "ShahMatKanal"]
[Result "0-1"]
[WhiteElo "2223"]
[BlackElo "2492"]
[TimeControl "180+1"]
[EndTime "8:18:52 PDT"]
[Termination "ShahMatKanal won by checkmate"]

1. Nf3 {[%clk 0:03:00.9]} 1... c6 {[%clk 0:02:56.8]} 2. d4 {[%clk 0:03:00.5]}
2... g6 {[%clk 0:02:53]} 3. c4 {[%clk 0:02:59]} 3... Bg7 {[%clk 0:02:50.8]} 4.
b3 {[%clk 0:02:58.8]} 4... d5 {[%clk 0:02:49.4]} 5. Bb2 {[%clk 0:02:59.1]} 5...
Nf6 {[%clk 0:02:48.3]} 6. g3 {[%clk 0:02:59.4]} 6... O-O {[%clk 0:02:43.6]} 7.
Bg2 {[%clk 0:02:59.9]} 7... a5 {[%clk 0:02:42.8]} 8. O-O {[%clk 0:02:54.1]} 8...
a4 {[%clk 0:02:41.5]} 9. Re1 {[%clk 0:02:49.4]} 9... Bf5 {[%clk 0:02:33.4]} 10.
Nfd2 {[%clk 0:02:37.6]} 10... Na6 {[%clk 0:02:23.3]} 11. e4 {[%clk 0:02:35.1]}
11... dxe4 {[%clk 0:02:23.5]} 12. Nxe4 {[%clk 0:02:35]} 12... Nxe4 {[%clk
0:02:24]} 13. Bxe4 {[%clk 0:02:35.2]} 13... Bxe4 {[%clk 0:02:22.8]} 14. Rxe4
{[%clk 0:02:35.8]} 14... c5 {[%clk 0:02:14.7]} 15. Na3 {[%clk 0:02:26.7]} 15...
Nb4 {[%clk 0:02:05.3]} 16. Nb5 {[%clk 0:02:21.2]} 16... Nc6 {[%clk 0:01:51.9]}
17. Rb1 {[%clk 0:02:04.8]} 17... axb3 {[%clk 0:01:49.9]} 18. axb3 {[%clk
0:02:05.7]} 18... f5 {[%clk 0:01:35.7]} 19. Re1 {[%clk 0:01:29.2]} 19... cxd4
{[%clk 0:01:33]} 20. f4 {[%clk 0:01:28.9]} 20... Ra2 {[%clk 0:01:26.6]} 21. Qe2
{[%clk 0:01:11.3]} 21... Kh8 {[%clk 0:01:19.3]} 22. Qe6 {[%clk 0:00:57.5]} 22...
Qb6 {[%clk 0:00:50.9]} 23. Kh1 {[%clk 0:00:49]} 23... Qc5 {[%clk 0:00:50.7]} 24.
Red1 {[%clk 0:00:44.6]} 24... Rd8 {[%clk 0:00:42.1]} 25. Nc7 {[%clk 0:00:38.2]}
25... Rxb2 {[%clk 0:00:29.4]} 26. Rxb2 {[%clk 0:00:36.7]} 26... d3 {[%clk
0:00:29.9]} 27. Ra2 {[%clk 0:00:34.4]} 27... Nd4 {[%clk 0:00:29.9]} 28. Qf7
{[%clk 0:00:16.1]} 28... Qxc7 {[%clk 0:00:26.2]} 29. Rxd3 {[%clk 0:00:16.1]}
29... Qc6+ {[%clk 0:00:22.9]} 30. Kg1 {[%clk 0:00:15.3]} 30... Nf3+ {[%clk
0:00:20.6]} 31. Kf2 {[%clk 0:00:15]} 31... Qb6+ {[%clk 0:00:06.4]} 32. Ke2
{[%clk 0:00:13.1]} 32... Rxd3 {[%clk 0:00:06.3]} 33. Ra8+ {[%clk 0:00:11.3]}
33... Rd8 {[%clk 0:00:05.5]} 34. Rxd8+ {[%clk 0:00:11.3]} 34... Qxd8 {[%clk
0:00:05.7]} 35. Kxf3 {[%clk 0:00:12.2]} 35... Bf6 {[%clk 0:00:04]} 36. h4 {[%clk
0:00:12]} 36... b6 {[%clk 0:00:03.4]} 37. h5 {[%clk 0:00:12.1]} 37... Qg8 {[%clk
0:00:03.5]} 38. hxg6 {[%clk 0:00:11]} 38... Qxf7 {[%clk 0:00:02.9]} 39. gxf7
{[%clk 0:00:11.9]} 39... Kg7 {[%clk 0:00:03.8]} 40. g4 {[%clk 0:00:12.1]} 40...
fxg4+ {[%clk 0:00:03.8]} 41. Kxg4 {[%clk 0:00:12.4]} 41... Kxf7 {[%clk
0:00:04.7]} 42. Kf5 {[%clk 0:00:13.3]} 42... e6+ {[%clk 0:00:05.1]} 43. Ke4
{[%clk 0:00:13.8]} 43... Ke7 {[%clk 0:00:06]} 44. b4 {[%clk 0:00:14.2]} 44...
Kd6 {[%clk 0:00:05.9]} 45. Kd3 {[%clk 0:00:14.7]} 45... h5 {[%clk 0:00:05]} 46.
Ke4 {[%clk 0:00:15.2]} 46... h4 {[%clk 0:00:05]} 47. c5+ {[%clk 0:00:15.7]}
47... bxc5 {[%clk 0:00:05.2]} 48. bxc5+ {[%clk 0:00:16.6]} 48... Kxc5 {[%clk
0:00:05.8]} 49. Kf3 {[%clk 0:00:17.5]} 49... Kd4 {[%clk 0:00:05.6]} 50. Kg4
{[%clk 0:00:18.4]} 50... Ke4 {[%clk 0:00:05.1]} 51. f5 {[%clk 0:00:18.7]} 51...
exf5+ {[%clk 0:00:05.1]} 52. Kh3 {[%clk 0:00:19.6]} 52... f4 {[%clk 0:00:05.2]}
53. Kg2 {[%clk 0:00:20]} 53... f3+ {[%clk 0:00:05.6]} 54. Kh3 {[%clk 0:00:20.9]}
54... Ke3 {[%clk 0:00:04.9]} 55. Kh2 {[%clk 0:00:20.7]} 55... Ke2 {[%clk
0:00:04.2]} 56. Kh3 {[%clk 0:00:20.4]} 56... f2 {[%clk 0:00:04.3]} 57. Kh2
{[%clk 0:00:21.3]} 57... Be5+ {[%clk 0:00:03.4]} 58. Kg2 {[%clk 0:00:21.6]}
58... f1=Q# {[%clk 0:00:03.5]} 0-1

[Event "Early-Titled-Tuesday-Blitz-September-12-2023"]
[Site "Chess.com"]
[Date "2023.09.12"]
[Round "2"]
[White "Russian_berezka"]
[Black "Aleksandar-Topalov"]
[Result "1-0"]
[WhiteElo "2615"]
[BlackElo "2340"]
[TimeControl "180+1"]
[EndTime "8:18:53 PDT"]
[Termination "Russian_berezka won by resignation"]

1. d4 {[%clk 0:03:00.9]} 1... e6 {[%clk 0:02:59.6]} 2. c4 {[%clk 0:03:00.9]}
2... f5 {[%clk 0:02:58.6]} 3. Nc3 {[%clk 0:03:00.1]} 3... Nf6 {[%clk 0:02:58.8]}
4. a3 {[%clk 0:03:00.5]} 4... b6 {[%clk 0:02:55.9]} 5. Bf4 {[%clk 0:02:54.4]}
5... Bb7 {[%clk 0:02:54.7]} 6. e3 {[%clk 0:02:54.9]} 6... Be7 {[%clk 0:02:54.4]}
7. h4 {[%clk 0:02:52.2]} 7... O-O {[%clk 0:02:50.5]} 8. Nh3 {[%clk 0:02:35.2]}
8... Ne4 {[%clk 0:02:44.3]} 9. Nxe4 {[%clk 0:02:26.1]} 9... Bxe4 {[%clk
0:02:22.1]} 10. Ng5 {[%clk 0:02:15.7]} 10... Bb7 {[%clk 0:02:07.4]} 11. d5
{[%clk 0:02:05.5]} 11... h6 {[%clk 0:01:13.3]} 12. Nf3 {[%clk 0:02:03.5]} 12...
Bf6 {[%clk 0:01:11]} 13. Qd2 {[%clk 0:01:51.3]} 13... d6 {[%clk 0:00:46.4]} 14.
dxe6 {[%clk 0:01:47.3]} 14... Qe7 {[%clk 0:00:46.1]} 15. Nd4 {[%clk 0:01:31.6]}
15... Bxd4 {[%clk 0:00:45.7]} 16. Qxd4 {[%clk 0:01:19.6]} 16... Qxe6 {[%clk
0:00:45.7]} 17. f3 {[%clk 0:00:51.9]} 17... Nd7 {[%clk 0:00:35.4]} 18. Bd3
{[%clk 0:00:47.2]} 18... Nc5 {[%clk 0:00:32.3]} 19. Bc2 {[%clk 0:00:45.5]} 19...
Qg6 {[%clk 0:00:23]} 20. Kf2 {[%clk 0:00:29]} 20... Ne6 {[%clk 0:00:21]} 21. Qc3
{[%clk 0:00:28]} 21... Nxf4 {[%clk 0:00:21]} 22. exf4 {[%clk 0:00:28.9]} 22...
Rae8 {[%clk 0:00:17.7]} 23. Rae1 {[%clk 0:00:28.1]} 23... Qf7 {[%clk 0:00:16.9]}
24. b4 {[%clk 0:00:23.2]} 24... g6 {[%clk 0:00:12.8]} 25. Qd4 {[%clk 0:00:21.1]}
25... h5 {[%clk 0:00:11.8]} 26. Bd3 {[%clk 0:00:17.4]} 26... Rxe1 {[%clk
0:00:11.6]} 27. Rxe1 {[%clk 0:00:16.6]} 27... Re8 {[%clk 0:00:11.9]} 28. Rxe8+
{[%clk 0:00:16.6]} 28... Qxe8 {[%clk 0:00:12.1]} 29. Qf6 {[%clk 0:00:17.2]}
29... Qf7 {[%clk 0:00:11.8]} 30. Qd8+ {[%clk 0:00:13.8]} 30... Kg7 {[%clk
0:00:12.1]} 31. Qb8 {[%clk 0:00:10.5]} 31... Bc6 {[%clk 0:00:10.2]} 32. Qxa7
{[%clk 0:00:08.8]} 32... d5 {[%clk 0:00:10.3]} 33. c5 {[%clk 0:00:07.6]} 33...
bxc5 {[%clk 0:00:09.5]} 34. Qxc5 {[%clk 0:00:08.5]} 34... Bb7 {[%clk 0:00:08.1]}
35. Qd4+ {[%clk 0:00:08.7]} 35... Kh7 {[%clk 0:00:07.8]} 36. Qe5 {[%clk
0:00:08.2]} 36... c6 {[%clk 0:00:07.7]} 37. Qd6 {[%clk 0:00:08.3]} 37... Qg7
{[%clk 0:00:06.8]} 38. Qe5 {[%clk 0:00:07.2]} 38... Qf7 {[%clk 0:00:07]} 39. a4
{[%clk 0:00:06.9]} 39... Qd7 {[%clk 0:00:07]} 40. a5 {[%clk 0:00:06.2]} 40...
Qc8 {[%clk 0:00:06.1]} 41. Qe7+ {[%clk 0:00:05.2]} 41... Kh6 {[%clk 0:00:06.4]}
42. Qf7 {[%clk 0:00:03.9]} 42... Ba6 {[%clk 0:00:04.8]} 43. Bc2 {[%clk
0:00:03.2]} 43... Qb7 {[%clk 0:00:04.2]} 44. Qxb7 {[%clk 0:00:02.2]} 44... Bxb7
{[%clk 0:00:03.7]} 45. Bd3 {[%clk 0:00:03.1]} 45... Kg7 {[%clk 0:00:03.3]} 46.
a6 {[%clk 0:00:02.4]} 46... Ba8 {[%clk 0:00:03.1]} 47. Ke3 {[%clk 0:00:03.1]}
47... Kf6 {[%clk 0:00:03.7]} 48. Kd4 {[%clk 0:00:03.8]} 48... Ke7 {[%clk
0:00:04.3]} 49. Kc5 {[%clk 0:00:04.5]} 49... Kd7 {[%clk 0:00:04.9]} 50. Kb6
{[%clk 0:00:05.1]} 50... d4 {[%clk 0:00:05.1]} 51. Ka7 {[%clk 0:00:04.7]} 51...
c5 {[%clk 0:00:05.8]} 52. Kxa8 {[%clk 0:00:04.5]} 52... cxb4 {[%clk 0:00:05.7]}
53. Kb7 {[%clk 0:00:05.2]} 53... b3 {[%clk 0:00:06.2]} 54. a7 {[%clk 0:00:05.9]}
54... b2 {[%clk 0:00:06.8]} 55. a8=Q {[%clk 0:00:06.5]} 1-0

[Event "Early-Titled-Tuesday-Blitz-September-12-2023"]
[Site "Chess.com"]
[Date "2023.09.12"]
[Round "2"]
[White "secretsuperstar7"]
[Black "gshwbedhkhd"]
[Result "1-0"]
[WhiteElo "2402"]
[BlackElo "2551"]
[TimeControl "180+1"]
[EndTime "8:18:56 PDT"]
[Termination "secretsuperstar7 won on time"]

1. c4 {[%clk 0:02:55.3]} 1... f5 {[%clk 0:02:58.9]} 2. Nc3 {[%clk 0:02:55.4]}
2... Nf6 {[%clk 0:02:57.8]} 3. g3 {[%clk 0:02:55.4]} 3... g6 {[%clk 0:02:58]} 4.
Bg2 {[%clk 0:02:55.7]} 4... Bg7 {[%clk 0:02:58.6]} 5. Nf3 {[%clk 0:02:56.1]}
5... O-O {[%clk 0:02:59.1]} 6. O-O {[%clk 0:02:56.7]} 6... d6 {[%clk 0:02:59.6]}
7. d4 {[%clk 0:02:55.3]} 7... Qe8 {[%clk 0:02:59.6]} 8. b3 {[%clk 0:02:51.3]}
8... Na6 {[%clk 0:02:58.5]} 9. Bb2 {[%clk 0:02:51.4]} 9... c6 {[%clk 0:02:58]}
10. Re1 {[%clk 0:02:45.8]} 10... Rb8 {[%clk 0:02:54]} 11. e4 {[%clk 0:02:44]}
11... fxe4 {[%clk 0:02:52.8]} 12. Nxe4 {[%clk 0:02:44.1]} 12... Nxe4 {[%clk
0:02:53.3]} 13. Rxe4 {[%clk 0:02:44]} 13... Bf5 {[%clk 0:02:46.1]} 14. Re1
{[%clk 0:02:43.2]} 14... b5 {[%clk 0:02:45.2]} 15. Bc3 {[%clk 0:02:40.2]} 15...
bxc4 {[%clk 0:02:42.6]} 16. bxc4 {[%clk 0:02:40]} 16... Qf7 {[%clk 0:02:41.6]}
17. Qe2 {[%clk 0:02:38.2]} 17... Bg4 {[%clk 0:02:36]} 18. Ng5 {[%clk 0:02:19.5]}
18... Bxe2 {[%clk 0:02:24.2]} 19. Nxf7 {[%clk 0:02:19.6]} 19... Bxc4 {[%clk
0:02:24.9]} 20. Ng5 {[%clk 0:02:19.3]} 20... Bf6 {[%clk 0:02:16.2]} 21. Ne4
{[%clk 0:02:08.3]} 21... d5 {[%clk 0:02:10]} 22. Nxf6+ {[%clk 0:02:03.7]} 22...
exf6 {[%clk 0:02:10.5]} 23. Re6 {[%clk 0:02:03.4]} 23... Rb6 {[%clk 0:02:00.8]}
24. a4 {[%clk 0:01:50.2]} 24... Nc7 {[%clk 0:01:55.8]} 25. Re7 {[%clk
0:01:48.5]} 25... Rf7 {[%clk 0:01:53.2]} 26. Re3 {[%clk 0:01:39.7]} 26... Kg7
{[%clk 0:01:42.1]} 27. Bh3 {[%clk 0:01:34]} 27... Rb8 {[%clk 0:01:25.9]} 28. Ba5
{[%clk 0:01:26.9]} 28... Ne8 {[%clk 0:01:06.6]} 29. Re6 {[%clk 0:01:17]} 29...
Rfb7 {[%clk 0:00:46.9]} 30. Bg4 {[%clk 0:01:00.7]} 30... Rb1+ {[%clk 0:00:25.6]}
31. Rxb1 {[%clk 0:00:58.4]} 31... Rxb1+ {[%clk 0:00:26.5]} 32. Kg2 {[%clk
0:00:58.5]} 32... Bf1+ {[%clk 0:00:25.5]} 33. Kf3 {[%clk 0:00:55.9]} 33... Rb3+
{[%clk 0:00:23.6]} 34. Re3 {[%clk 0:00:46.6]} 34... Rxe3+ {[%clk 0:00:23.9]} 35.
Kxe3 {[%clk 0:00:46.7]} 35... Nd6 {[%clk 0:00:24.3]} 36. Bc7 {[%clk 0:00:30.5]}
36... Nc4+ {[%clk 0:00:22.1]} 37. Kf4 {[%clk 0:00:30.3]} 37... f5 {[%clk
0:00:21.2]} 38. Bd1 {[%clk 0:00:29.3]} 38... Kf6 {[%clk 0:00:20.5]} 39. Bd8+
{[%clk 0:00:28.3]} 39... Kf7 {[%clk 0:00:18.4]} 40. h4 {[%clk 0:00:27]} 40... h6
{[%clk 0:00:17.5]} 41. f3 {[%clk 0:00:25.4]} 41... Bd3 {[%clk 0:00:17.4]} 42. g4
{[%clk 0:00:25.5]} 42... fxg4 {[%clk 0:00:17]} 43. fxg4 {[%clk 0:00:25.7]} 43...
Ke6 {[%clk 0:00:16.3]} 44. a5 {[%clk 0:00:23]} 44... Nd6 {[%clk 0:00:14.7]} 45.
Bc7 {[%clk 0:00:21.4]} 45... Nb5 {[%clk 0:00:14]} 46. Bb8 {[%clk 0:00:20.6]}
46... a6 {[%clk 0:00:13.5]} 47. Ke3 {[%clk 0:00:20.9]} 47... Be4 {[%clk
0:00:13.3]} 48. Be2 {[%clk 0:00:18.4]} 48... Bg2 {[%clk 0:00:10.2]} 49. Bf4
{[%clk 0:00:17.8]} 49... g5 {[%clk 0:00:07.6]} 50. hxg5 {[%clk 0:00:17.6]} 50...
hxg5 {[%clk 0:00:08.5]} 51. Bxg5 {[%clk 0:00:18.2]} 51... Be4 {[%clk 0:00:09]}
52. Bf4 {[%clk 0:00:17.9]} 52... Bc2 {[%clk 0:00:08.8]} 53. g5 {[%clk
0:00:17.1]} 53... Bg6 {[%clk 0:00:08.3]} 54. Bg4+ {[%clk 0:00:16.8]} 54... Bf5
{[%clk 0:00:04.9]} 55. Bh5 {[%clk 0:00:15.3]} 55... Nc3 {[%clk 0:00:04]} 56. g6
{[%clk 0:00:14.7]} 1-0

[Event "Early-Titled-Tuesday-Blitz-September-12-2023"]
[Site "Chess.com"]
[Date "2023.09.12"]
[Round "2"]
[White "Hilary46"]
[Black "Rikikits"]
[Result "0-1"]
[WhiteElo "2560"]
[BlackElo "2856"]
[TimeControl "180+1"]
[EndTime "8:19:02 PDT"]
[Termination "Rikikits won by resignation"]

1. e4 {[%clk 0:03:00.9]} 1... e5 {[%clk 0:02:58.6]} 2. Nf3 {[%clk 0:03:01.3]}
2... Nc6 {[%clk 0:02:58.7]} 3. Bb5 {[%clk 0:03:01.9]} 3... a6 {[%clk 0:02:58.3]}
4. Ba4 {[%clk 0:03:02.6]} 4... Nf6 {[%clk 0:02:58]} 5. O-O {[%clk 0:03:03.3]}
5... Be7 {[%clk 0:02:55.6]} 6. Re1 {[%clk 0:03:03.7]} 6... b5 {[%clk 0:02:55.7]}
7. Bb3 {[%clk 0:03:04.3]} 7... O-O {[%clk 0:02:56.2]} 8. c3 {[%clk 0:03:05]}
8... d6 {[%clk 0:02:54.2]} 9. h3 {[%clk 0:03:05.3]} 9... Nb8 {[%clk 0:02:52.2]}
10. d4 {[%clk 0:03:05.1]} 10... Nbd7 {[%clk 0:02:52.5]} 11. Nbd2 {[%clk
0:03:05.4]} 11... Bb7 {[%clk 0:02:52.4]} 12. Bc2 {[%clk 0:03:05.9]} 12... c5
{[%clk 0:02:52]} 13. d5 {[%clk 0:03:04.6]} 13... c4 {[%clk 0:02:51.1]} 14. Nf1
{[%clk 0:03:00.5]} 14... Re8 {[%clk 0:02:40.2]} 15. Ng3 {[%clk 0:03:00.5]} 15...
Bf8 {[%clk 0:02:39.7]} 16. Be3 {[%clk 0:02:53.9]} 16... Nc5 {[%clk 0:02:37.9]}
17. b4 {[%clk 0:02:52.7]} 17... cxb3 {[%clk 0:02:36.3]} 18. axb3 {[%clk
0:02:53.6]} 18... a5 {[%clk 0:02:36.6]} 19. b4 {[%clk 0:02:51.6]} 19... axb4
{[%clk 0:02:34.1]} 20. cxb4 {[%clk 0:02:52.5]} 20... Ncd7 {[%clk 0:02:31.8]} 21.
Qe2 {[%clk 0:02:48]} 21... Qc7 {[%clk 0:02:27.2]} 22. Bd3 {[%clk 0:02:42.4]}
22... Ra4 {[%clk 0:02:21.4]} 23. Rab1 {[%clk 0:02:17.4]} 23... Rea8 {[%clk
0:02:10.2]} 24. Rec1 {[%clk 0:02:11]} 24... Qb8 {[%clk 0:02:07.4]} 25. Bxb5
{[%clk 0:02:11.2]} 25... Ra2 {[%clk 0:02:07.4]} 26. Qc4 {[%clk 0:02:09]} 26...
g6 {[%clk 0:01:58.8]} 27. Bc6 {[%clk 0:02:01.1]} 27... Be7 {[%clk 0:01:35.6]}
28. b5 {[%clk 0:01:30.7]} 28... R8a4 {[%clk 0:01:31.3]} 29. Qb3 {[%clk
0:01:25.5]} 29... R2a3 {[%clk 0:01:23.9]} 30. Qc2 {[%clk 0:01:24.9]} 30... Bd8
{[%clk 0:01:11.5]} 31. Bxb7 {[%clk 0:01:20.8]} 31... Qxb7 {[%clk 0:01:11.3]} 32.
Qc8 {[%clk 0:01:21.7]} 32... Qxc8 {[%clk 0:01:11.2]} 33. Rxc8 {[%clk 0:01:22.6]}
33... Ra8 {[%clk 0:01:10]} 34. Rxa8 {[%clk 0:01:17.5]} 34... Rxa8 {[%clk
0:01:10.9]} 35. b6 {[%clk 0:01:09.9]} 35... Rb8 {[%clk 0:01:05.1]} 36. b7 {[%clk
0:01:10.1]} 36... Bb6 {[%clk 0:01:05.3]} 37. Rxb6 {[%clk 0:01:03.5]} 37... Nxb6
{[%clk 0:01:04.5]} 38. Bxb6 {[%clk 0:01:04.4]} 38... Rxb7 {[%clk 0:01:05.2]} 39.
Be3 {[%clk 0:01:04]} 39... Rb4 {[%clk 0:01:00.4]} 40. Nd2 {[%clk 0:01:04.3]}
40... Nd7 {[%clk 0:00:58.5]} 41. Kf1 {[%clk 0:01:03.9]} 41... f6 {[%clk
0:00:57.5]} 42. Ke2 {[%clk 0:01:04.1]} 42... Kf7 {[%clk 0:00:57.7]} 43. Kd3
{[%clk 0:01:04]} 43... Ke7 {[%clk 0:00:58.1]} 44. Ne2 {[%clk 0:01:00.6]} 44...
f5 {[%clk 0:00:55.9]} 45. f3 {[%clk 0:00:57.8]} 45... Nf6 {[%clk 0:00:48.9]} 46.
Bg5 {[%clk 0:00:53.4]} 46... Kf7 {[%clk 0:00:47.1]} 47. Bxf6 {[%clk 0:00:53.5]}
47... Kxf6 {[%clk 0:00:48]} 48. Nc4 {[%clk 0:00:52.2]} 48... Ke7 {[%clk
0:00:47.6]} 49. exf5 {[%clk 0:00:44.2]} 49... gxf5 {[%clk 0:00:48.5]} 50. Ng3
{[%clk 0:00:44.8]} 50... e4+ {[%clk 0:00:45.1]} 51. fxe4 {[%clk 0:00:44.6]}
51... Rb3+ {[%clk 0:00:45.5]} 52. Kd4 {[%clk 0:00:38.8]} 52... Rxg3 {[%clk
0:00:46.4]} 53. exf5 {[%clk 0:00:34.8]} 53... Rxg2 {[%clk 0:00:43.6]} 54. f6+
{[%clk 0:00:34.4]} 54... Kd7 {[%clk 0:00:34.1]} 55. Nb6+ {[%clk 0:00:15]} 55...
Kc7 {[%clk 0:00:31.5]} 56. Nc4 {[%clk 0:00:14.6]} 56... Rf2 {[%clk 0:00:30.6]}
57. Ke4 {[%clk 0:00:13.5]} 57... Rxf6 {[%clk 0:00:30.5]} 58. Ne3 {[%clk
0:00:09.9]} 58... Rh6 {[%clk 0:00:30.3]} 59. Kf5 {[%clk 0:00:07.1]} 59... Rxh3
{[%clk 0:00:30]} 60. Ng4 {[%clk 0:00:07.4]} 60... h5 {[%clk 0:00:25.7]} 61. Nh6
{[%clk 0:00:03.7]} 61... Rd3 {[%clk 0:00:23.7]} 62. Ke6 {[%clk 0:00:02.1]} 62...
Re3+ {[%clk 0:00:21]} 0-1

[Event "Early-Titled-Tuesday-Blitz-September-12-2023"]
[Site "Chess.com"]
[Date "2023.09.12"]
[Round "2"]
[White "FuenfgegenWilly"]
[Black "noblerone"]
[Result "0-1"]
[WhiteElo "2348"]
[BlackElo "2537"]
[TimeControl "180+1"]
[EndTime "8:19:03 PDT"]
[Termination "noblerone won by resignation"]

1. d4 {[%clk 0:03:00.4]} 1... d5 {[%clk 0:02:59.4]} 2. c4 {[%clk 0:03:00.6]}
2... c6 {[%clk 0:02:57.4]} 3. Nf3 {[%clk 0:02:58.2]} 3... Nf6 {[%clk 0:02:55.4]}
4. e3 {[%clk 0:02:58.5]} 4... Bg4 {[%clk 0:02:54.3]} 5. Nbd2 {[%clk 0:02:57.4]}
5... e6 {[%clk 0:02:54]} 6. b3 {[%clk 0:02:57.4]} 6... Nbd7 {[%clk 0:02:48.8]}
7. Bd3 {[%clk 0:02:55.4]} 7... Bb4 {[%clk 0:02:46.4]} 8. O-O {[%clk 0:02:54.6]}
8... O-O {[%clk 0:02:46.2]} 9. a3 {[%clk 0:02:51.1]} 9... Bd6 {[%clk 0:02:44.1]}
10. Bb2 {[%clk 0:02:49.6]} 10... e5 {[%clk 0:02:28.9]} 11. e4 {[%clk 0:02:30.4]}
11... exd4 {[%clk 0:02:25.7]} 12. Bxd4 {[%clk 0:02:28.1]} 12... Re8 {[%clk
0:01:52.1]} 13. Re1 {[%clk 0:02:16.4]} 13... Bf4 {[%clk 0:01:30.7]} 14. exd5
{[%clk 0:01:42.5]} 14... cxd5 {[%clk 0:01:17.8]} 15. Rxe8+ {[%clk 0:01:17.7]}
15... Qxe8 {[%clk 0:01:18.7]} 16. Nf1 {[%clk 0:01:07.9]} 16... Nf8 {[%clk
0:00:43.2]} 17. h3 {[%clk 0:01:00.4]} 17... Bh5 {[%clk 0:00:38.8]} 18. Bxf6
{[%clk 0:00:58.9]} 18... gxf6 {[%clk 0:00:38.7]} 19. cxd5 {[%clk 0:00:59]} 19...
Rd8 {[%clk 0:00:34.2]} 20. g3 {[%clk 0:00:37.6]} 20... Bc7 {[%clk 0:00:31.8]}
21. N1d2 {[%clk 0:00:32.1]} 21... Bb6 {[%clk 0:00:28.5]} 22. Ne4 {[%clk
0:00:28.8]} 22... Nd7 {[%clk 0:00:20.2]} 23. g4 {[%clk 0:00:24.2]} 23... Bg6
{[%clk 0:00:19.8]} 24. Qc2 {[%clk 0:00:21.3]} 24... Rc8 {[%clk 0:00:18.4]} 25.
Qb1 {[%clk 0:00:16.7]} 25... Ne5 {[%clk 0:00:16.2]} 26. Nxe5 {[%clk 0:00:14.5]}
26... Qxe5 {[%clk 0:00:16]} 27. d6 {[%clk 0:00:12.1]} 27... Rd8 {[%clk
0:00:11.2]} 28. Ra2 {[%clk 0:00:10.6]} 28... Kg7 {[%clk 0:00:10.3]} 29. Re2
{[%clk 0:00:10.2]} 29... Bxe4 {[%clk 0:00:07.6]} 30. Bxe4 {[%clk 0:00:09.8]}
30... Qxd6 {[%clk 0:00:06.7]} 31. Kg2 {[%clk 0:00:05.9]} 31... Qd4 {[%clk
0:00:05.2]} 32. Bxh7 {[%clk 0:00:04.4]} 32... Rh8 {[%clk 0:00:05.6]} 33. Be4
{[%clk 0:00:04.4]} 33... Qc3 {[%clk 0:00:05.9]} 34. Qd3 {[%clk 0:00:04.5]} 34...
Qc5 {[%clk 0:00:04.5]} 35. b4 {[%clk 0:00:03.3]} 35... Qg5 {[%clk 0:00:03.2]}
36. Qg3 {[%clk 0:00:02.9]} 36... Rd8 {[%clk 0:00:03.3]} 37. Bf5 {[%clk
0:00:03.1]} 37... Qc1 {[%clk 0:00:02.5]} 38. Qf3 {[%clk 0:00:01.1]} 38... Qd1
{[%clk 0:00:02.8]} 39. Kg3 {[%clk 0:00:01.5]} 39... Qd4 {[%clk 0:00:03]} 40. Re4
{[%clk 0:00:02]} 40... Qd6+ {[%clk 0:00:03.5]} 41. Kg2 {[%clk 0:00:02.6]} 41...
Bc7 {[%clk 0:00:04.2]} 42. Kf1 {[%clk 0:00:02.7]} 42... Qh2 {[%clk 0:00:04.3]}
43. Re1 {[%clk 0:00:02.4]} 43... Rd2 {[%clk 0:00:04.5]} 44. Qg2 {[%clk
0:00:02.8]} 44... Qf4 {[%clk 0:00:03.8]} 45. Kg1 {[%clk 0:00:03.2]} 45... Bb6
{[%clk 0:00:04.3]} 46. Rf1 {[%clk 0:00:03.3]} 46... Bd4 {[%clk 0:00:04.2]} 47.
Be4 {[%clk 0:00:03.7]} 47... Re2 {[%clk 0:00:04.1]} 48. Bxb7 {[%clk 0:00:03.8]}
48... a5 {[%clk 0:00:03.9]} 49. bxa5 {[%clk 0:00:03.5]} 49... Ra2 {[%clk
0:00:03.8]} 50. a6 {[%clk 0:00:04]} 50... Rxa3 {[%clk 0:00:04.1]} 51. Qf3 {[%clk
0:00:04.6]} 51... Rxf3 {[%clk 0:00:03.5]} 52. Bxf3 {[%clk 0:00:04.1]} 52... Qxf3
{[%clk 0:00:04.1]} 53. a7 {[%clk 0:00:04.7]} 53... Qg3+ {[%clk 0:00:04.2]} 54.
Kh1 {[%clk 0:00:04.8]} 54... Qxh3+ {[%clk 0:00:04.8]} 55. Kg1 {[%clk 0:00:05.7]}
55... Qxg4+ {[%clk 0:00:05.3]} 56. Kh1 {[%clk 0:00:06.2]} 56... Bxa7 {[%clk
0:00:06]} 57. Rg1 {[%clk 0:00:06.7]} 57... Qxg1+ {[%clk 0:00:05.9]} 58. Kxg1
{[%clk 0:00:07.6]} 58... Kg6 {[%clk 0:00:06.7]} 59. Kg2 {[%clk 0:00:08.3]} 59...
Kf5 {[%clk 0:00:07.3]} 60. f3 {[%clk 0:00:09]} 60... Kf4 {[%clk 0:00:07.7]} 61.
Kf1 {[%clk 0:00:08.8]} 61... Kxf3 {[%clk 0:00:07.8]} 62. Ke1 {[%clk 0:00:09.7]}
62... Kg2 {[%clk 0:00:08]} 63. Ke2 {[%clk 0:00:10]} 63... f5 {[%clk 0:00:08.6]}
64. Kd3 {[%clk 0:00:10.3]} 64... f4 {[%clk 0:00:09.2]} 0-1